[Event "Live Chess"]
[Site "Chess.com"]
[Date "2024.06.02"]
[Round "-"]
[White "yarek"]
[Black "JanMur7"]
[Result "0-1"]
[WhiteElo "1733"]
[BlackElo "2274"]
[TimeControl "300"]
[EndTime "1:27:17 PDT"]
[Termination "JanMur7 won by checkmate"]

1. e4 {[%clk 0:04:57]} 1... g6 {[%clk 0:04:58.7]} 2. d4 {[%clk 0:04:55.4]} 2...
Bg7 {[%clk 0:04:57.6]} 3. c3 {[%clk 0:04:49.2]} 3... c5 {[%clk 0:04:56.6]} 4.
Be3 {[%clk 0:04:46.9]} 4... cxd4 {[%clk 0:04:55.5]} 5. cxd4 {[%clk 0:04:45.3]}
5... d5 {[%clk 0:04:54.5]} 6. e5 {[%clk 0:04:43.2]} 6... Nc6 {[%clk 0:04:53.2]}
7. h3 {[%clk 0:04:39.5]} 7... f6 {[%clk 0:04:51]} 8. exf6 {[%clk 0:04:30.7]}
8... Nxf6 {[%clk 0:04:50.9]} 9. Nf3 {[%clk 0:04:28.8]} 9... O-O {[%clk
0:04:48.1]} 10. Bd3 {[%clk 0:04:19.2]} 10... Ne4 {[%clk 0:04:44.1]} 11. O-O
{[%clk 0:04:08.7]} 11... Bf5 {[%clk 0:04:40.5]} 12. Nc3 {[%clk 0:04:04.4]} 12...
e6 {[%clk 0:04:26.9]} 13. Bxe4 {[%clk 0:03:38.9]} 13... dxe4 {[%clk 0:04:24.7]}
14. Ng5 {[%clk 0:03:30.5]} 14... Nxd4 {[%clk 0:04:17.7]} 15. Bxd4 {[%clk
0:03:25.3]} 15... Qxd4 {[%clk 0:04:11.9]} 16. Qxd4 {[%clk 0:03:20.2]} 16... Bxd4
{[%clk 0:04:11.8]} 17. Ngxe4 {[%clk 0:03:12.5]} 17... b6 {[%clk 0:04:08.5]} 18.
Rac1 {[%clk 0:03:00.6]} 18... Rfd8 {[%clk 0:04:01.2]} 19. Rfe1 {[%clk
0:02:49.1]} 19... Rac8 {[%clk 0:03:58.4]} 20. Ng5 {[%clk 0:02:37.3]} 20... Rc6
{[%clk 0:03:41.9]} 21. Nb5 {[%clk 0:02:26.3]} 21... Rxc1 {[%clk 0:03:33.7]} 22.
Rxc1 {[%clk 0:02:24.1]} 22... Bc5 {[%clk 0:03:32.5]} 23. Nxa7 {[%clk 0:02:16.1]}
23... Rd2 {[%clk 0:03:29]} 24. b4 {[%clk 0:01:37.6]} 24... Bxf2+ {[%clk
0:03:23.9]} 25. Kh1 {[%clk 0:01:32.7]} 25... Be3 {[%clk 0:03:20.2]} 26. Rc8+
{[%clk 0:00:57.5]} 26... Kg7 {[%clk 0:03:16.6]} 27. Rc7+ {[%clk 0:00:56.7]}
27... Kh6 {[%clk 0:03:03.6]} 28. Nf7+ {[%clk 0:00:51.6]} 28... Kh5 {[%clk
0:03:01.4]} 29. g4+ {[%clk 0:00:49.6]} 29... Kh4 {[%clk 0:03:00.1]} 30. gxf5
{[%clk 0:00:41.7]} 30... Kg3 {[%clk 0:02:58.4]} 31. Rc1 {[%clk 0:00:04.3]} 31...
Rh2# {[%clk 0:02:56.4]} 0-1

[Event "Live Chess"]
[Site "Chess.com"]
[Date "2024.06.02"]
[Round "-"]
[White "NeilDruggan73"]
[Black "RichardABates"]
[Result "0-1"]
[WhiteElo "1711"]
[BlackElo "2373"]
[TimeControl "300"]
[EndTime "1:27:50 PDT"]
[Termination "RichardABates won by resignation"]

1. d4 {[%clk 0:04:58.3]} 1... Nf6 {[%clk 0:04:58.3]} 2. Bg5 {[%clk 0:04:52.6]}
2... d5 {[%clk 0:04:55.9]} 3. Bxf6 {[%clk 0:04:49.5]} 3... exf6 {[%clk
0:04:54.2]} 4. e3 {[%clk 0:04:48.9]} 4... c5 {[%clk 0:04:51.9]} 5. Nf3 {[%clk
0:04:43.3]} 5... Nc6 {[%clk 0:04:50.1]} 6. Be2 {[%clk 0:04:37.6]} 6... Qb6
{[%clk 0:04:47.8]} 7. b3 {[%clk 0:04:27.4]} 7... cxd4 {[%clk 0:04:42.5]} 8. exd4
{[%clk 0:04:23.7]} 8... Bb4+ {[%clk 0:04:40.5]} 9. c3 {[%clk 0:04:22.1]} 9...
Bd6 {[%clk 0:04:39.1]} 10. O-O {[%clk 0:04:20.1]} 10... O-O {[%clk 0:04:37.5]}
11. Bd3 {[%clk 0:04:17.1]} 11... Bg4 {[%clk 0:04:32.9]} 12. Nbd2 {[%clk
0:04:14.8]} 12... Rfe8 {[%clk 0:04:30.6]} 13. h3 {[%clk 0:04:00.5]} 13... Bh5
{[%clk 0:04:27.4]} 14. Bxh7+ {[%clk 0:03:52.3]} 14... Kxh7 {[%clk 0:04:22.4]}
15. Ng5+ {[%clk 0:03:51.6]} 15... fxg5 {[%clk 0:04:21]} 16. Qxh5+ {[%clk
0:03:50]} 16... Kg8 {[%clk 0:04:19.7]} 17. Nf3 {[%clk 0:03:46.8]} 17... Be7
{[%clk 0:04:05.9]} 18. Rae1 {[%clk 0:03:38]} 18... Bf6 {[%clk 0:04:02.6]} 19.
Nxg5 {[%clk 0:03:30.3]} 19... Bxg5 {[%clk 0:03:59.9]} 20. Qxg5 {[%clk
0:03:28.2]} 20... Qa5 {[%clk 0:03:57]} 21. Re3 {[%clk 0:03:06.8]} 21... Rxe3
{[%clk 0:03:48.1]} 22. fxe3 {[%clk 0:03:04.9]} 22... Qxc3 {[%clk 0:03:42.3]} 23.
Qxd5 {[%clk 0:03:02.4]} 23... Qxe3+ {[%clk 0:03:40.8]} 24. Kh1 {[%clk
0:03:00.6]} 24... Qe7 {[%clk 0:03:35.1]} 25. Rf3 {[%clk 0:02:36.7]} 25... Rd8
{[%clk 0:03:32.1]} 26. Qh5 {[%clk 0:02:31.2]} 26... Nxd4 {[%clk 0:03:28.9]} 27.
Rf4 {[%clk 0:02:12.2]} 27... Ne6 {[%clk 0:03:16.5]} 28. Rh4 {[%clk 0:02:08.6]}
28... f6 {[%clk 0:03:04.3]} 29. Qh8+ {[%clk 0:01:58.4]} 29... Kf7 {[%clk
0:03:03]} 30. Qh5+ {[%clk 0:01:54.5]} 30... g6 {[%clk 0:03:01.7]} 31. Qh7+
{[%clk 0:01:53]} 31... Ng7 {[%clk 0:03:00.5]} 32. Rg4 {[%clk 0:01:49.9]} 32...
Rd1+ {[%clk 0:02:55.5]} 33. Kh2 {[%clk 0:01:48.6]} 33... Qe5+ {[%clk 0:02:52.6]}
34. Rg3 {[%clk 0:01:46.6]} 34... Rh1+ {[%clk 0:02:48.1]} 35. Kxh1 {[%clk
0:01:42.9]} 35... Qxg3 {[%clk 0:02:46.7]} 36. Qh8 {[%clk 0:01:06.2]} 36... Qe1+
{[%clk 0:02:42.7]} 37. Kh2 {[%clk 0:01:04.9]} 37... Qe8 {[%clk 0:02:39]} 38. Qh4
{[%clk 0:01:02.8]} 38... Qe5+ {[%clk 0:02:37.1]} 39. Kh1 {[%clk 0:01:01.3]}
39... Qa1+ {[%clk 0:02:33.7]} 40. Kh2 {[%clk 0:00:59.8]} 40... Qxa2 {[%clk
0:02:31.7]} 41. Qc4+ {[%clk 0:00:58.3]} 41... Ne6 {[%clk 0:02:27.6]} 42. Qd5
{[%clk 0:00:56.3]} 42... Qa3 {[%clk 0:02:20]} 43. Qxb7+ {[%clk 0:00:53.4]} 43...
Qe7 {[%clk 0:02:18.7]} 44. Qd5 {[%clk 0:00:50.7]} 44... Kg7 {[%clk 0:02:11.8]}
45. b4 {[%clk 0:00:43.7]} 45... Nf4 {[%clk 0:02:05]} 46. b5 {[%clk 0:00:40.3]}
46... Nxd5 {[%clk 0:02:03.1]} 0-1

[Event "Live Chess"]
[Site "Chess.com"]
[Date "2024.06.02"]
[Round "-"]
[White "Dhaydon19"]
[Black "AlanBstard10"]
[Result "1-0"]
[WhiteElo "2633"]
[BlackElo "1203"]
[TimeControl "300"]
[EndTime "1:28:02 PDT"]
[Termination "Dhaydon19 won by resignation"]

1. d4 {[%clk 0:04:58.6]} 1... Nf6 {[%clk 0:04:58.1]} 2. Nf3 {[%clk 0:04:58.1]}
2... d5 {[%clk 0:04:56.3]} 3. g3 {[%clk 0:04:57.1]} 3... Bg4 {[%clk 0:04:53.6]}
4. Bg2 {[%clk 0:04:57]} 4... Bxf3 {[%clk 0:04:52.6]} 5. exf3 {[%clk 0:04:55.7]}
5... c6 {[%clk 0:04:52.1]} 6. O-O {[%clk 0:04:54.7]} 6... g6 {[%clk 0:04:51]} 7.
f4 {[%clk 0:04:54.3]} 7... Bg7 {[%clk 0:04:50]} 8. c3 {[%clk 0:04:54]} 8... O-O
{[%clk 0:04:49.4]} 9. Nd2 {[%clk 0:04:53.7]} 9... Nbd7 {[%clk 0:04:48.8]} 10.
Nf3 {[%clk 0:04:53.5]} 10... Rb8 {[%clk 0:04:46.8]} 11. Re1 {[%clk 0:04:53.4]}
11... Qb6 {[%clk 0:04:43.8]} 12. Ne5 {[%clk 0:04:52.8]} 12... Nxe5 {[%clk
0:04:42.3]} 13. fxe5 {[%clk 0:04:52.7]} 13... Nd7 {[%clk 0:04:39.2]} 14. e6
{[%clk 0:04:51.7]} 14... fxe6 {[%clk 0:04:35]} 15. Rxe6 {[%clk 0:04:51.6]} 15...
Rbe8 {[%clk 0:04:24]} 16. Qe2 {[%clk 0:04:49.7]} 16... Nf6 {[%clk 0:04:13.4]}
17. Bg5 {[%clk 0:04:47.3]} 17... h6 {[%clk 0:04:03.9]} 18. Bf4 {[%clk
0:04:41.2]} 18... g5 {[%clk 0:04:00.8]} 19. Be5 {[%clk 0:04:34.6]} 19... Ne4
{[%clk 0:03:52.7]} 20. Bxe4 {[%clk 0:04:29.8]} 20... Bxe5 {[%clk 0:03:51.7]} 21.
Bg6 {[%clk 0:04:19.5]} 21... Bg7 {[%clk 0:03:39.7]} 22. Bxe8 {[%clk 0:04:17.9]}
22... Rxe8 {[%clk 0:03:38.4]} 23. Re1 {[%clk 0:04:16.6]} 23... Bf6 {[%clk
0:03:33.8]} 24. Rxf6 {[%clk 0:04:15.6]} 24... Kg7 {[%clk 0:03:28.4]} 25. Re6
{[%clk 0:04:14.4]} 1-0

[Event "Live Chess"]
[Site "Chess.com"]
[Date "2024.06.02"]
[Round "-"]
[White "CheckThis4"]
[Black "nyclone"]
[Result "1-0"]
[WhiteElo "2695"]
[BlackElo "1129"]
[TimeControl "300"]
[EndTime "1:28:03 PDT"]
[Termination "CheckThis4 won by checkmate"]

1. d4 {[%clk 0:04:57.4]} 1... e6 {[%clk 0:04:54.8]} 2. e4 {[%clk 0:04:55.7]}
2... b6 {[%clk 0:04:52.8]} 3. Nc3 {[%clk 0:04:53.8]} 3... Bb7 {[%clk 0:04:51.7]}
4. a3 {[%clk 0:04:52.6]} 4... d5 {[%clk 0:04:41.1]} 5. e5 {[%clk 0:04:51]} 5...
Nd7 {[%clk 0:04:37.8]} 6. Qg4 {[%clk 0:04:43.7]} 6... Nh6 {[%clk 0:04:20.2]} 7.
Bxh6 {[%clk 0:04:39.1]} 7... gxh6 {[%clk 0:04:19.2]} 8. Nf3 {[%clk 0:04:37.5]}
8... Qe7 {[%clk 0:04:11.4]} 9. Bb5 {[%clk 0:04:31.6]} 9... O-O-O {[%clk
0:04:08.2]} 10. O-O-O {[%clk 0:04:24.1]} 10... f5 {[%clk 0:03:54.7]} 11. exf6
{[%clk 0:04:19.2]} 11... Nxf6 {[%clk 0:03:53.7]} 12. Qh3 {[%clk 0:04:17.3]}
12... Kb8 {[%clk 0:03:45.4]} 13. Rhe1 {[%clk 0:04:15.1]} 13... Bc8 {[%clk
0:03:13.8]} 14. Ne5 {[%clk 0:04:11.7]} 14... Bg7 {[%clk 0:03:07.2]} 15. Nc6+
{[%clk 0:04:07.7]} 15... Kb7 {[%clk 0:02:54.9]} 16. Nxe7 {[%clk 0:04:05.9]}
16... a6 {[%clk 0:02:47.1]} 17. Bc6+ {[%clk 0:04:04.3]} 17... Ka7 {[%clk
0:02:35.6]} 18. Nxc8+ {[%clk 0:04:02.7]} 18... Rxc8 {[%clk 0:02:35.5]} 19. Rxe6
{[%clk 0:04:01.5]} 19... Ne4 {[%clk 0:02:31.9]} 20. Nxe4 {[%clk 0:03:58.8]}
20... dxe4 {[%clk 0:02:31.8]} 21. Re7 {[%clk 0:03:57.6]} 21... Bf6 {[%clk
0:02:25.5]} 22. Rf7 {[%clk 0:03:56.1]} 22... Bg5+ {[%clk 0:02:23.9]} 23. Kb1
{[%clk 0:03:54.4]} 23... Kb8 {[%clk 0:02:16.1]} 24. d5 {[%clk 0:03:52.6]} 24...
Rcd8 {[%clk 0:02:14.5]} 25. d6 {[%clk 0:03:50.6]} 25... Rxd6 {[%clk 0:02:01]}
26. Rxd6 {[%clk 0:03:48.2]} 26... cxd6 {[%clk 0:02:00.9]} 27. Qd7 {[%clk
0:03:46.2]} 27... e3 {[%clk 0:01:55.8]} 28. Qb7# {[%clk 0:03:44.2]} 1-0

[Event "Live Chess"]
[Site "Chess.com"]
[Date "2024.06.02"]
[Round "-"]
[White "Bradfield133"]
[Black "jellhhggffhjjjjjj"]
[Result "1-0"]
[WhiteElo "1884"]
[BlackElo "403"]
[TimeControl "300"]
[EndTime "1:28:13 PDT"]
[Termination "Bradfield133 won by checkmate"]

1. c4 {[%clk 0:04:57.7]} 1... d5 {[%clk 0:04:56.9]} 2. cxd5 {[%clk 0:04:54.4]}
2... Nf6 {[%clk 0:04:54.5]} 3. g3 {[%clk 0:04:47.2]} 3... e6 {[%clk 0:04:49.6]}
4. dxe6 {[%clk 0:04:44]} 4... Bxe6 {[%clk 0:04:48.3]} 5. Bg2 {[%clk 0:04:42.9]}
5... c6 {[%clk 0:04:44.6]} 6. Nf3 {[%clk 0:04:40]} 6... Nbd7 {[%clk 0:04:43.9]}
7. O-O {[%clk 0:04:38.3]} 7... Be7 {[%clk 0:04:39.8]} 8. d3 {[%clk 0:04:34.2]}
8... Nd5 {[%clk 0:04:38.2]} 9. Nc3 {[%clk 0:04:18.1]} 9... N7b6 {[%clk
0:04:32.8]} 10. Bd2 {[%clk 0:04:14.3]} 10... Bd6 {[%clk 0:04:27]} 11. Rc1 {[%clk
0:04:08.4]} 11... Qc7 {[%clk 0:04:25.9]} 12. Nb5 {[%clk 0:04:04.1]} 12... Qd7
{[%clk 0:04:21.8]} 13. Nxd6+ {[%clk 0:04:02.4]} 13... Qxd6 {[%clk 0:04:20.5]}
14. Nd4 {[%clk 0:03:55.2]} 14... O-O-O {[%clk 0:04:05.2]} 15. Nb5 {[%clk
0:03:44.6]} 15... Qd7 {[%clk 0:03:53.2]} 16. e4 {[%clk 0:03:28.7]} 16... Nf6
{[%clk 0:03:41.5]} 17. Bf4 {[%clk 0:03:26.4]} 17... h6 {[%clk 0:03:30.6]} 18.
Nxa7# {[%clk 0:03:23.3]} 1-0

[Event "Live Chess"]
[Site "Chess.com"]
[Date "2024.06.02"]
[Round "-"]
[White "gunslinger222"]
[Black "EdenHazard8"]
[Result "0-1"]
[WhiteElo "2254"]
[BlackElo "2200"]
[TimeControl "300"]
[EndTime "1:28:34 PDT"]
[Termination "EdenHazard8 won by resignation"]

1. d4 {[%clk 0:04:57.9]} 1... Nf6 {[%clk 0:04:58.4]} 2. c4 {[%clk 0:04:57.2]}
2... e6 {[%clk 0:04:56.5]} 3. Nc3 {[%clk 0:04:56.1]} 3... b6 {[%clk 0:04:54.4]}
4. Nf3 {[%clk 0:04:50.4]} 4... Bb4 {[%clk 0:04:52.1]} 5. Bg5 {[%clk 0:04:49]}
5... Bb7 {[%clk 0:04:50.3]} 6. e3 {[%clk 0:04:48.3]} 6... Bxc3+ {[%clk
0:04:48.7]} 7. bxc3 {[%clk 0:04:47.2]} 7... h6 {[%clk 0:04:48.1]} 8. Bh4 {[%clk
0:04:45.6]} 8... g5 {[%clk 0:04:46.9]} 9. Bg3 {[%clk 0:04:45]} 9... d6 {[%clk
0:04:45.5]} 10. Bd3 {[%clk 0:04:42.4]} 10... Nbd7 {[%clk 0:04:44.8]} 11. Qc2
{[%clk 0:04:36.1]} 11... Qe7 {[%clk 0:04:43.5]} 12. h4 {[%clk 0:04:27]} 12... g4
{[%clk 0:04:40]} 13. Nd2 {[%clk 0:04:25.7]} 13... Bxg2 {[%clk 0:04:38.7]} 14.
Rg1 {[%clk 0:04:20.9]} 14... Bb7 {[%clk 0:04:36.8]} 15. e4 {[%clk 0:04:18.5]}
15... e5 {[%clk 0:04:34.2]} 16. a4 {[%clk 0:04:16.3]} 16... a5 {[%clk
0:04:31.3]} 17. Rb1 {[%clk 0:04:10.5]} 17... O-O-O {[%clk 0:04:27.2]} 18. Nb3
{[%clk 0:03:50.9]} 18... exd4 {[%clk 0:04:24]} 19. cxd4 {[%clk 0:03:37.5]} 19...
Nxe4 {[%clk 0:04:21.9]} 20. Kf1 {[%clk 0:03:24.1]} 20... Nxg3+ {[%clk 0:04:18]}
21. Rxg3 {[%clk 0:03:18.4]} 21... Qxh4 {[%clk 0:04:14.1]} 22. Be4 {[%clk
0:03:11.9]} 22... Ba6 {[%clk 0:03:42.7]} 23. Nxa5 {[%clk 0:02:56.1]} 23... bxa5
{[%clk 0:03:40.5]} 24. Qb3 {[%clk 0:02:53.9]} 24... Nb6 {[%clk 0:03:39.4]} 25.
Kg2 {[%clk 0:02:43.2]} 25... Rhe8 {[%clk 0:03:21.5]} 26. Bf5+ {[%clk 0:02:40.9]}
26... Kb8 {[%clk 0:03:17.2]} 27. c5 {[%clk 0:02:40.2]} 27... dxc5 {[%clk
0:03:16.3]} 28. dxc5 {[%clk 0:02:38.6]} 28... Bb7+ {[%clk 0:03:14.6]} 0-1

[Event "Live Chess"]
[Site "Chess.com"]
[Date "2024.06.02"]
[Round "-"]
[White "r0ad_t0-gm"]
[Black "Duke_of_Bebington"]
[Result "1-0"]
[WhiteElo "2262"]
[BlackElo "1665"]
[TimeControl "300"]
[EndTime "1:28:41 PDT"]
[Termination "r0ad_t0-gm won by resignation"]

1. Nf3 {[%clk 0:04:58.8]} 1... d5 {[%clk 0:04:58.3]} 2. g3 {[%clk 0:04:58.7]}
2... Nf6 {[%clk 0:04:53.1]} 3. Bg2 {[%clk 0:04:58.6]} 3... c6 {[%clk 0:04:51.8]}
4. O-O {[%clk 0:04:58.5]} 4... Bf5 {[%clk 0:04:50.5]} 5. d3 {[%clk 0:04:58.4]}
5... Nbd7 {[%clk 0:04:48]} 6. c4 {[%clk 0:04:58.3]} 6... e6 {[%clk 0:04:46.8]}
7. cxd5 {[%clk 0:04:58.2]} 7... exd5 {[%clk 0:04:45.9]} 8. Nc3 {[%clk
0:04:57.8]} 8... Bd6 {[%clk 0:04:43.9]} 9. Nh4 {[%clk 0:04:56.8]} 9... Be6
{[%clk 0:04:42.1]} 10. e4 {[%clk 0:04:55.9]} 10... dxe4 {[%clk 0:04:40.8]} 11.
dxe4 {[%clk 0:04:55.8]} 11... Be5 {[%clk 0:04:38.9]} 12. Nf3 {[%clk 0:04:53.3]}
12... Bxc3 {[%clk 0:04:36.8]} 13. bxc3 {[%clk 0:04:53.2]} 13... O-O {[%clk
0:04:34.8]} 14. Re1 {[%clk 0:04:51.9]} 14... Nc5 {[%clk 0:04:32.7]} 15. Qc2
{[%clk 0:04:49.8]} 15... Qd3 {[%clk 0:04:25]} 16. Qxd3 {[%clk 0:04:47.3]} 16...
Nxd3 {[%clk 0:04:24.9]} 17. Re3 {[%clk 0:04:46.1]} 17... Nxc1 {[%clk 0:04:21.2]}
18. Rxc1 {[%clk 0:04:46]} 18... Rad8 {[%clk 0:04:19]} 19. a4 {[%clk 0:04:43.3]}
19... Rd7 {[%clk 0:04:17.9]} 20. Nd4 {[%clk 0:04:42.5]} 20... Bc4 {[%clk
0:04:10.2]} 21. Bh3 {[%clk 0:04:41.5]} 21... Rdd8 {[%clk 0:04:07.4]} 22. e5
{[%clk 0:04:40.9]} 22... Nd5 {[%clk 0:04:06]} 23. Ree1 {[%clk 0:04:38.1]} 23...
Rfe8 {[%clk 0:03:58.6]} 24. e6 {[%clk 0:04:36.2]} 24... Ne7 {[%clk 0:03:44.1]}
25. Rb1 {[%clk 0:04:21.8]} 25... b6 {[%clk 0:03:39.2]} 26. a5 {[%clk 0:04:15.9]}
26... c5 {[%clk 0:03:37.3]} 27. Nb5 {[%clk 0:03:56]} 27... Nd5 {[%clk
0:03:29.7]} 28. exf7+ {[%clk 0:03:47.1]} 28... Kxf7 {[%clk 0:03:27.6]} 29. Rxe8
{[%clk 0:03:46.2]} 29... Rxe8 {[%clk 0:03:26.5]} 30. Nd6+ {[%clk 0:03:45.3]}
30... Ke7 {[%clk 0:03:24.7]} 31. Nxe8 {[%clk 0:03:45.2]} 31... Kxe8 {[%clk
0:03:24.4]} 32. axb6 {[%clk 0:03:43.7]} 32... axb6 {[%clk 0:03:23.2]} 33. Be6
{[%clk 0:03:42.8]} 33... Nxc3 {[%clk 0:03:19.5]} 34. Rxb6 {[%clk 0:03:37.7]}
34... Bxe6 {[%clk 0:03:12.5]} 35. Rxe6+ {[%clk 0:03:37.6]} 35... Kf7 {[%clk
0:03:11.3]} 36. Rc6 {[%clk 0:03:35.8]} 36... Ne4 {[%clk 0:03:10.7]} 37. f3
{[%clk 0:03:33.8]} 37... Nd2 {[%clk 0:03:08.8]} 38. Kf2 {[%clk 0:03:30.4]} 38...
c4 {[%clk 0:03:07.4]} 39. Ke2 {[%clk 0:03:27.8]} 1-0

[Event "Live Chess"]
[Site "Chess.com"]
[Date "2024.06.02"]
[Round "-"]
[White "matt1979"]
[Black "LL220284LL"]
[Result "0-1"]
[WhiteElo "1409"]
[BlackElo "2498"]
[TimeControl "300"]
[EndTime "1:28:52 PDT"]
[Termination "LL220284LL won by checkmate"]

1. f4 {[%clk 0:04:58.5]} 1... g6 {[%clk 0:04:58.4]} 2. Nf3 {[%clk 0:04:57.1]}
2... Bg7 {[%clk 0:04:57.9]} 3. e4 {[%clk 0:04:52.8]} 3... c6 {[%clk 0:04:56.6]}
4. d3 {[%clk 0:04:51.1]} 4... d6 {[%clk 0:04:55.8]} 5. Be2 {[%clk 0:04:50.2]}
5... Nf6 {[%clk 0:04:55.1]} 6. O-O {[%clk 0:04:49.1]} 6... Nbd7 {[%clk
0:04:53.2]} 7. c3 {[%clk 0:04:45.4]} 7... e5 {[%clk 0:04:51.6]} 8. f5 {[%clk
0:04:43.3]} 8... Qb6+ {[%clk 0:04:45.6]} 9. Kh1 {[%clk 0:04:40.8]} 9... O-O
{[%clk 0:04:42.2]} 10. fxg6 {[%clk 0:04:38.1]} 10... fxg6 {[%clk 0:04:36]} 11.
b3 {[%clk 0:04:36]} 11... Nc5 {[%clk 0:04:32.7]} 12. Bg5 {[%clk 0:04:31.6]}
12... Ne6 {[%clk 0:04:31.3]} 13. Bh4 {[%clk 0:04:29.8]} 13... Ng4 {[%clk
0:04:29.5]} 14. d4 {[%clk 0:04:15.7]} 14... Ne3 {[%clk 0:04:27.7]} 15. Qd2
{[%clk 0:04:12]} 15... Nxf1 {[%clk 0:04:25.3]} 16. Bxf1 {[%clk 0:04:10.1]} 16...
exd4 {[%clk 0:04:22.1]} 17. c4 {[%clk 0:04:04.2]} 17... d3 {[%clk 0:04:11.9]}
18. Bf2 {[%clk 0:03:59.7]} 18... Qd8 {[%clk 0:04:07.6]} 19. Nc3 {[%clk
0:03:56.3]} 19... Qf6 {[%clk 0:04:01.9]} 20. Rc1 {[%clk 0:03:54.3]} 20... Nc5
{[%clk 0:03:57.3]} 21. b4 {[%clk 0:03:45.6]} 21... Nd7 {[%clk 0:03:47.2]} 22.
Qxd3 {[%clk 0:03:39.3]} 22... Ne5 {[%clk 0:03:45.6]} 23. Nxe5 {[%clk 0:03:37.3]}
23... Qxf2 {[%clk 0:03:41.2]} 24. Nf3 {[%clk 0:03:26]} 24... Bg4 {[%clk
0:03:38.2]} 25. Rc2 {[%clk 0:03:18.3]} 25... Qb6 {[%clk 0:03:30]} 26. a3 {[%clk
0:03:14.4]} 26... Rad8 {[%clk 0:03:25.1]} 27. Be2 {[%clk 0:03:06.1]} 27... Qc7
{[%clk 0:03:22.7]} 28. Ng5 {[%clk 0:02:54.5]} 28... Bxe2 {[%clk 0:03:19.3]} 29.
Qxe2 {[%clk 0:02:51.9]} 29... Qe7 {[%clk 0:03:17.1]} 30. Qg4 {[%clk 0:02:45.5]}
30... Rf1# {[%clk 0:03:15]} 0-1

[Event "Live Chess"]
[Site "Chess.com"]
[Date "2024.06.02"]
[Round "-"]
[White "peteopeteo"]
[Black "vincents82"]
[Result "0-1"]
[WhiteElo "1541"]
[BlackElo "2014"]
[TimeControl "300"]
[EndTime "1:29:01 PDT"]
[Termination "vincents82 won by resignation"]

1. e4 {[%clk 0:04:58.5]} 1... d5 {[%clk 0:04:58.7]} 2. exd5 {[%clk 0:04:57.7]}
2... Qxd5 {[%clk 0:04:57.5]} 3. Nc3 {[%clk 0:04:57.6]} 3... Qd8 {[%clk
0:04:56.2]} 4. d4 {[%clk 0:04:56.5]} 4... Nf6 {[%clk 0:04:55.3]} 5. Nf3 {[%clk
0:04:55.9]} 5... Bg4 {[%clk 0:04:54.2]} 6. Be2 {[%clk 0:04:52.2]} 6... e6 {[%clk
0:04:52.9]} 7. h3 {[%clk 0:04:51.1]} 7... Bxf3 {[%clk 0:04:51.8]} 8. Bxf3 {[%clk
0:04:50.1]} 8... c6 {[%clk 0:04:51.5]} 9. O-O {[%clk 0:04:49.2]} 9... Nbd7
{[%clk 0:04:50.8]} 10. Re1 {[%clk 0:04:48.7]} 10... Be7 {[%clk 0:04:50.1]} 11.
Be3 {[%clk 0:04:45.5]} 11... O-O {[%clk 0:04:48.7]} 12. Ne4 {[%clk 0:04:44.7]}
12... Nxe4 {[%clk 0:04:47.4]} 13. Bxe4 {[%clk 0:04:44.6]} 13... Nf6 {[%clk
0:04:46.8]} 14. Bd3 {[%clk 0:04:43.4]} 14... Qc7 {[%clk 0:04:44.5]} 15. c3
{[%clk 0:04:42.2]} 15... Rfd8 {[%clk 0:04:41.7]} 16. Bb1 {[%clk 0:04:40.4]}
16... c5 {[%clk 0:04:39.3]} 17. Qc2 {[%clk 0:04:39.6]} 17... cxd4 {[%clk
0:04:35.8]} 18. Bg5 {[%clk 0:04:35.7]} 18... d3 {[%clk 0:04:32.9]} 19. Qd2
{[%clk 0:04:32.8]} 19... Qd6 {[%clk 0:04:31.2]} 20. Re3 {[%clk 0:04:31.3]} 20...
Ne4 {[%clk 0:04:16.2]} 21. Rxe4 {[%clk 0:04:25.4]} 21... Bxg5 {[%clk 0:04:15.2]}
22. Qxg5 {[%clk 0:04:24.6]} 22... d2 {[%clk 0:04:14.1]} 23. Rd4 {[%clk 0:04:20]}
23... Qxd4 {[%clk 0:04:08.6]} 24. Bxh7+ {[%clk 0:04:09.6]} 24... Kxh7 {[%clk
0:04:00.4]} 25. Qh5+ {[%clk 0:04:01]} 25... Kg8 {[%clk 0:03:57.8]} 26. cxd4
{[%clk 0:03:59.9]} 26... Rxd4 {[%clk 0:03:56.4]} 27. Rd1 {[%clk 0:03:48.8]}
27... Rad8 {[%clk 0:03:48.7]} 28. Qf3 {[%clk 0:03:40.6]} 28... b6 {[%clk
0:03:46.1]} 29. Kf1 {[%clk 0:03:37.5]} 29... Rd3 {[%clk 0:03:44.1]} 30. Qe2
{[%clk 0:03:35.5]} 30... R8d7 {[%clk 0:03:39.4]} 31. Qe4 {[%clk 0:03:32.3]}
31... g6 {[%clk 0:03:38.3]} 32. Ke2 {[%clk 0:03:28.3]} 32... R3d4 {[%clk
0:03:29.7]} 33. Qe3 {[%clk 0:03:17.2]} 33... Kg7 {[%clk 0:03:28.6]} 34. Rxd2
{[%clk 0:03:12.2]} 34... Rxd2+ {[%clk 0:03:27.4]} 35. Qxd2 {[%clk 0:03:10.1]}
35... Rxd2+ {[%clk 0:03:26.5]} 36. Kxd2 {[%clk 0:03:09.1]} 36... Kf6 {[%clk
0:03:24.9]} 37. Ke3 {[%clk 0:03:07.7]} 37... Ke5 {[%clk 0:03:23.8]} 38. f4+
{[%clk 0:03:06.2]} 38... Kf5 {[%clk 0:03:22.6]} 39. g4+ {[%clk 0:03:06.1]} 39...
Kf6 {[%clk 0:03:21.7]} 40. Ke4 {[%clk 0:03:05.4]} 40... g5 {[%clk 0:03:15.5]}
41. h4 {[%clk 0:02:59.2]} 41... gxh4 {[%clk 0:03:13.4]} 42. g5+ {[%clk
0:02:58.5]} 42... Kg6 {[%clk 0:03:12.3]} 43. Kf3 {[%clk 0:02:57.5]} 43... Kf5
{[%clk 0:03:11.5]} 44. b4 {[%clk 0:02:56.3]} 44... h3 {[%clk 0:03:09.7]} 45. Kg3
{[%clk 0:02:55.4]} 45... h2 {[%clk 0:03:09]} 46. Kxh2 {[%clk 0:02:54.9]} 46...
Kxf4 {[%clk 0:03:08.5]} 47. Kg2 {[%clk 0:02:54.8]} 47... Kxg5 {[%clk 0:03:07.7]}
48. Kf3 {[%clk 0:02:54.7]} 48... Kf5 {[%clk 0:03:06.9]} 49. Ke3 {[%clk
0:02:54.5]} 49... Ke5 {[%clk 0:03:05.7]} 50. a4 {[%clk 0:02:54.4]} 50... Kd5
{[%clk 0:03:04.6]} 51. a5 {[%clk 0:02:54.3]} 51... bxa5 {[%clk 0:03:03.4]} 52.
bxa5 {[%clk 0:02:54.2]} 52... e5 {[%clk 0:03:02.8]} 53. a6 {[%clk 0:02:53]}
53... f5 {[%clk 0:03:02]} 54. Kf3 {[%clk 0:02:52.7]} 54... f4 {[%clk 0:03:00.9]}
0-1